{"text_format":"3","workbook":"xlsx","n_sheets":4,"sheets":["Початок","Весільний бюджет","Наряд-банкет-музика-канцтовари","Прикраси-квіти-подарунки-авто"],"not_rendered":{"charts":1,"defined_names":22},"read":"whole","date_system":"1900"}

{"sheet":"Початок","index":0,"n_rows":7,"n_cols":2,"rows_kept":7}
[null,"ПРО ЦЕЙ ШАБЛОН"]
[null,"За допомогою цього шаблону ви можете відстежувати весільні витрати."]
[null,"Введіть орієнтовно та фактично витрати, віднесені до різних категорій, на окремих аркушах."]
[null,"Зведення весільного бюджету та діаграма оновлюються автоматично."]
[null,"Примітка. "]
[null,"Додаткові вказівки наведено в стовпці A на кожному аркуші. Цей текст приховано навмисно. Щоб вилучити текст, виберіть стовпець A й натисніть клавішу Delete. Щоб відобразити текст, виберіть стовпець A та змініть колір шрифту."]
[null,"Щоб дізнатися більше про таблиці, натисніть клавіші Shift+F10 у таблиці, виберіть \"Таблиця\", а потім – \"Текст заміщення\"."]

{"sheet":"Весільний бюджет","index":1,"n_rows":19,"n_cols":6,"rows_kept":19,"merged":[[2,2,4,5],[18,2,42,5]]}
["Створіть весільний бюджет на цьому аркуші. Введіть відомості в таблиці на аркушах \"Наряд-банкет-музика-канцтовари\" та \"Прикраси-квіти-подарунки-авто\", щоб оновити зведення та діаграму на поточному аркуші. Корисні вказівки щодо роботи з цим аркушем наведено в клітинках у цьому стовпці. Надпис \"Дата весілля\" наведено в клітинці C1.",null,"Дата весілля:"]
["Введіть дату весілля в клітинку C2. Кількість що залишилося днів, обчислюється в клітинці E2.",null,{"$f":"TODAY()+365","v":"2019-12-04"},"Залишилося днів:",{"$f":"C2-TODAY()","v":365}]
["Заголовок цього аркуша наведено в клітинці C3. Подальші вказівки наведено в клітинці A6.",null,"Зведення весільного бюджету"]
[]
[]
["Таблиця зведення бюджету, що починається з клітинки C6, оновлюється автоматично. Подальші вказівки наведено в клітинці A19.",null,"КАТЕГОРІЯ","ОРІЄНТОВНО","ФАКТИЧНО","НЕДОСТАЧА/ЗАЛИШОК"]
[null,null,"Наряд",{"$f":"Орієнтовні_витрати_на_наряд","v":{"v":9490,"d":"9,490.00"}},{"$f":"Фактичні_витрати_на_наряд","v":{"v":9770,"d":"9,770.00"}},{"$f":"ЗведенняБюджету[[#This Row],[ОРІЄНТОВНО]]-ЗведенняБюджету[[#This Row],[ФАКТИЧНО]]","v":{"v":-280,"d":"-280.00"}}]
[null,null,"Банкет",{"$f":"Орієнтовні_витрати_на_банкет","v":{"v":1050,"d":"1,050.00"}},{"$f":"Фактичні_витрати_на_банкет","v":{"v":928,"d":"928.00"}},{"$f":"ЗведенняБюджету[[#This Row],[ОРІЄНТОВНО]]-ЗведенняБюджету[[#This Row],[ФАКТИЧНО]]","v":{"v":122,"d":"122.00"}}]
[null,null,"Музика",{"$f":"Орієнтовні_витрати_на_музику_та_розваги","v":{"v":600,"d":"600.00"}},{"$f":"Фактичні_витрати_на_музику_та_розваги","v":{"v":400,"d":"400.00"}},{"$f":"ЗведенняБюджету[[#This Row],[ОРІЄНТОВНО]]-ЗведенняБюджету[[#This Row],[ФАКТИЧНО]]","v":{"v":200,"d":"200.00"}}]
[null,null,"Друковані матеріали",{"$f":"Орієнтовні_витрати_на_друковані_матеріали_та_канцтовари","v":{"v":935,"d":"935.00"}},{"$f":"Фактичні_витрати_на_друковані_матеріали_та_канцтовари","v":{"v":870,"d":"870.00"}},{"$f":"ЗведенняБюджету[[#This Row],[ОРІЄНТОВНО]]-ЗведенняБюджету[[#This Row],[ФАКТИЧНО]]","v":{"v":65,"d":"65.00"}}]
[null,null,"Фотографування",{"$f":"Орієнтовні_витрати_на_фотографування","v":{"v":1625,"d":"1,625.00"}},{"$f":"Фактичні_витрати_на_фотографування","v":{"v":1575,"d":"1,575.00"}},{"$f":"ЗведенняБюджету[[#This Row],[ОРІЄНТОВНО]]-ЗведенняБюджету[[#This Row],[ФАКТИЧНО]]","v":{"v":50,"d":"50.00"}}]
[null,null,"Прикраси",{"$f":"Орієнтовні_витрати_на_прикраси","v":{"v":700,"d":"700.00"}},{"$f":"Фактичні_витрати_на_прикраси","v":{"v":720,"d":"720.00"}},{"$f":"ЗведенняБюджету[[#This Row],[ОРІЄНТОВНО]]-ЗведенняБюджету[[#This Row],[ФАКТИЧНО]]","v":{"v":-20,"d":"-20.00"}}]
[null,null,"Квіти",{"$f":"Орієнтовні_витрати_на_квіти","v":{"v":900,"d":"900.00"}},{"$f":"Фактичні_витрати_на_квіти","v":{"v":850,"d":"850.00"}},{"$f":"ЗведенняБюджету[[#This Row],[ОРІЄНТОВНО]]-ЗведенняБюджету[[#This Row],[ФАКТИЧНО]]","v":{"v":50,"d":"50.00"}}]
[null,null,"Подарунки",{"$f":"Орієнтовні_витрати_на_подарунки","v":{"v":1345,"d":"1,345.00"}},{"$f":"Фактичні_витрати_на_подарунки","v":{"v":1075,"d":"1,075.00"}},{"$f":"ЗведенняБюджету[[#This Row],[ОРІЄНТОВНО]]-ЗведенняБюджету[[#This Row],[ФАКТИЧНО]]","v":{"v":270,"d":"270.00"}}]
[null,null,"Транспорт",{"$f":"Орієнтовні_витрати_на_транспорт_і_перевезення","v":{"v":100,"d":"100.00"}},{"$f":"Фактичні_витрати_на_транспорт_і_перевезення","v":{"v":165,"d":"165.00"}},{"$f":"ЗведенняБюджету[[#This Row],[ОРІЄНТОВНО]]-ЗведенняБюджету[[#This Row],[ФАКТИЧНО]]","v":{"v":-65,"d":"-65.00"}}]
[null,null,"Інше",{"$f":"Загальні_орієнтовні_інші_витрати","v":{"v":885,"d":"885.00"}},{"$f":"Загальні_фактичні_інші_витрати","v":{"v":1021,"d":"1,021.00"}},{"$f":"ЗведенняБюджету[[#This Row],[ОРІЄНТОВНО]]-ЗведенняБюджету[[#This Row],[ФАКТИЧНО]]","v":{"v":-136,"d":"-136.00"}}]
[null,null,"Загальні витрати",{"$f":"SUBTOTAL(109,ЗведенняБюджету[ОРІЄНТОВНО])","v":{"v":17630,"d":"17,630.00"}},{"$f":"SUBTOTAL(109,ЗведенняБюджету[ФАКТИЧНО])","v":{"v":17374,"d":"17,374.00"}},{"$f":"SUBTOTAL(109,ЗведенняБюджету[НЕДОСТАЧА/ЗАЛИШОК])","v":{"v":256,"d":"256.00"}}]
[]
["Секторна діаграма в клітинці C19 оновлюється автоматично.",null,"У цій клітинці наведено секторну діаграму з відсотками витрат за категоріями."]

{"sheet":"Наряд-банкет-музика-канцтовари","index":2,"n_rows":56,"n_cols":6,"rows_kept":56,"merged":[[16,1,16,4],[28,1,28,4],[29,1,29,4],[35,1,35,4],[48,1,48,4]]}
["Введіть орієнтовно та фактично витрати на кожну категорія у відповідні таблиці на цьому аркуші. Недостача або залишок обчислюється автоматично. Надпис \"Наряд\" наведено в клітинці праворуч. Корисні вказівки щодо роботи з цим аркушем наведено в клітинках у цьому стовпці. Клацніть стрілку вниз, щоб почати.","Наряд",{"$nulls":3}," "]
[" Введіть докладні відомості в таблицю \"Наряд\", починаючи з клітинки праворуч. Подальші вказівки наведено в клітинці A18.","КАТЕГОРІЯ","ОРІЄНТОВНО","ФАКТИЧНО","НЕДОСТАЧА/ЗАЛИШОК"," "]
[null,"Обручки на заручини",{"v":1500,"d":"1,500.00"},{"v":1500,"d":"1,500.00"},{"$f":"'Наряд-банкет-музика-канцтовари'!$C3-'Наряд-банкет-музика-канцтовари'!$D3","v":{"v":0,"d":"0.00"}}]
[null,"Обручка нареченого",{"v":2000,"d":"2,000.00"},{"v":2300,"d":"2,300.00"},{"$f":"'Наряд-банкет-музика-канцтовари'!$C4-'Наряд-банкет-музика-канцтовари'!$D4","v":{"v":-300,"d":"-300.00 "}}]
[null,"Костюм нареченого",{"v":3000,"d":"3,000.00"},{"v":2750,"d":"2,750.00"},{"$f":"'Наряд-банкет-музика-канцтовари'!$C5-'Наряд-банкет-музика-канцтовари'!$D5","v":{"v":250,"d":"250.00"}}]
[null,"Головний убір нареченого",{"v":500,"d":"500.00"},{"v":500,"d":"500.00"},{"$f":"'Наряд-банкет-музика-канцтовари'!$C6-'Наряд-банкет-музика-канцтовари'!$D6","v":{"v":0,"d":"0.00"}}]
[null,"Взуття нареченого",{"v":350,"d":"350.00"},{"v":300,"d":"300.00"},{"$f":"'Наряд-банкет-музика-канцтовари'!$C7-'Наряд-банкет-музика-канцтовари'!$D7","v":{"v":50,"d":"50.00"}}]
[null,"Ювелірні прикраси нареченого",{"v":400,"d":"400.00"},{"v":550,"d":"550.00"},{"$f":"'Наряд-банкет-музика-канцтовари'!$C8-'Наряд-банкет-музика-канцтовари'!$D8","v":{"v":-150,"d":"-150.00 "}}]
[null,"Трикотажні вироби нареченого",{"v":20,"d":"20.00"},{"v":20,"d":"20.00"},{"$f":"'Наряд-банкет-музика-канцтовари'!$C9-'Наряд-банкет-музика-канцтовари'!$D9","v":{"v":0,"d":"0.00"}}]
[null,"Обручка нареченої",{"v":300,"d":"300.00"},{"v":250,"d":"250.00"},{"$f":"'Наряд-банкет-музика-канцтовари'!$C10-'Наряд-банкет-музика-канцтовари'!$D10","v":{"v":50,"d":"50.00"}}]
[null,"Плаття нареченої",{"v":300,"d":"300.00"},{"v":350,"d":"350.00"},{"$f":"'Наряд-банкет-музика-канцтовари'!$C11-'Наряд-банкет-музика-канцтовари'!$D11","v":{"v":-50,"d":"-50.00 "}}]
[null,"Фата нареченої",{"v":500,"d":"500.00"},{"v":500,"d":"500.00"},{"$f":"'Наряд-банкет-музика-канцтовари'!$C12-'Наряд-банкет-музика-канцтовари'!$D12","v":{"v":0,"d":"0.00"}}]
[null,"Взуття нареченої",{"v":200,"d":"200.00"},{"v":175,"d":"175.00"},{"$f":"'Наряд-банкет-музика-канцтовари'!$C13-'Наряд-банкет-музика-канцтовари'!$D13","v":{"v":25,"d":"25.00"}}]
[null,"Ювелірні прикраси нареченої",{"v":400,"d":"400.00"},{"v":550,"d":"550.00"},{"$f":"'Наряд-банкет-музика-канцтовари'!$C14-'Наряд-банкет-музика-канцтовари'!$D14","v":{"v":-150,"d":"-150.00 "}}]
[null,"Трикотажні вироби нареченої",{"v":20,"d":"20.00"},{"v":25,"d":"25.00"},{"$f":"'Наряд-банкет-музика-канцтовари'!$C15-'Наряд-банкет-музика-канцтовари'!$D15","v":{"v":-5,"d":"-5.00 "}}]
[null,"Загальні витрати на наряд",{"$f":"SUBTOTAL(109,Наряд[ОРІЄНТОВНО])","v":{"v":9490,"d":"9,490.00"}},{"$f":"SUBTOTAL(109,Наряд[ФАКТИЧНО])","v":{"v":9770,"d":"9,770.00"}},{"$f":"SUBTOTAL(109,Наряд[НЕДОСТАЧА/ЗАЛИШОК])","v":{"v":-280,"d":"-280.00 "}}]
[]
["Надпис \"Банкет\" наведено в клітинці праворуч.","Банкет*"]
["Введіть витрати на банкет у таблицю, починаючи з клітинки праворуч. Не враховуйте витрати на розваги та прикраси. Подальші вказівки наведено в клітинці A31.","КАТЕГОРІЯ","ОРІЄНТОВНО","ФАКТИЧНО","НЕДОСТАЧА/ЗАЛИШОК"]
[null,"Плата за приміщення та зал",{"v":200,"d":"200.00"},{"v":150,"d":"150.00"},{"$f":"'Наряд-банкет-музика-канцтовари'!$C20-'Наряд-банкет-музика-канцтовари'!$D20","v":{"v":50,"d":"50.00"}}]
[null,"Столи та стільці",{"v":100,"d":"100.00"},{"v":50,"d":"50.00"},{"$f":"'Наряд-банкет-музика-канцтовари'!$C21-'Наряд-банкет-музика-канцтовари'!$D21","v":{"v":50,"d":"50.00"}}]
[null,"Їжа",{"v":0,"d":"0.00"},{"v":0,"d":"0.00"},{"$f":"'Наряд-банкет-музика-канцтовари'!$C22-'Наряд-банкет-музика-канцтовари'!$D22","v":{"v":0,"d":"0.00"}}]
[null,"Напої",{"v":0,"d":"0.00"},{"v":0,"d":"0.00"},{"$f":"'Наряд-банкет-музика-канцтовари'!$C23-'Наряд-банкет-музика-канцтовари'!$D23","v":{"v":0,"d":"0.00"}}]
[null,"Скатертини",{"v":0,"d":"0.00"},{"v":0,"d":"0.00"},{"$f":"'Наряд-банкет-музика-канцтовари'!$C24-'Наряд-банкет-музика-канцтовари'!$D24","v":{"v":0,"d":"0.00"}}]
[null,"Торт",{"v":700,"d":"700.00"},{"v":700,"d":"700.00"},{"$f":"'Наряд-банкет-музика-канцтовари'!$C25-'Наряд-банкет-музика-канцтовари'!$D25","v":{"v":0,"d":"0.00"}}]
[null,"Вечірка",{"v":50,"d":"50.00"},{"v":28,"d":"28.00"},{"$f":"'Наряд-банкет-музика-канцтовари'!$C26-'Наряд-банкет-музика-канцтовари'!$D26","v":{"v":22,"d":"22.00"}}]
[null,"Персонал і чайові",{"v":0,"d":"0.00"},{"v":0,"d":"0.00"},{"$f":"'Наряд-банкет-музика-канцтовари'!$C27-'Наряд-банкет-музика-канцтовари'!$D27","v":{"v":0,"d":"0.00"}}]
[null,"Загальні витрати на банкет",{"$f":"SUBTOTAL(109,Банкет[ОРІЄНТОВНО])","v":{"v":1050,"d":"1,050.00"}},{"$f":"SUBTOTAL(109,Банкет[ФАКТИЧНО])","v":{"v":928,"d":"928.00"}},{"$f":"SUBTOTAL(109,Банкет[НЕДОСТАЧА/ЗАЛИШОК])","v":{"v":122,"d":"122.00"}}]
[null,"* Без витрат на розваги та прикраси"]
[]
["Надпис \"Музика та розваги\" наведено в клітинці праворуч.","Музика та розваги"]
["Введіть відомості в таблицю \"Музика\", починаючи з клітинки праворуч. Подальші вказівки наведено в клітинці A37.","КАТЕГОРІЯ","ОРІЄНТОВНО","ФАКТИЧНО","НЕДОСТАЧА/ЗАЛИШОК"]
[null,"Музиканти на церемонію",{"v":400,"d":"400.00"},{"v":400,"d":"400.00"},{"$f":"'Наряд-банкет-музика-канцтовари'!$C33-'Наряд-банкет-музика-канцтовари'!$D33","v":{"v":0,"d":"0.00"}}]
[null,"Музиканти на банкет",{"v":200,"d":"200.00"},{"v":0,"d":"0.00"},{"$f":"'Наряд-банкет-музика-канцтовари'!$C34-'Наряд-банкет-музика-канцтовари'!$D34","v":{"v":200,"d":"200.00"}}]
[null,"Загальні витрати на музику та розваги",{"$f":"SUBTOTAL(109,Музика[ОРІЄНТОВНО])","v":{"v":600,"d":"600.00"}},{"$f":"SUBTOTAL(109,Музика[ФАКТИЧНО])","v":{"v":400,"d":"400.00"}},{"$f":"SUBTOTAL(109,Музика[НЕДОСТАЧА/ЗАЛИШОК])","v":{"v":200,"d":"200.00"}}]
[]
["Надпис \"Друковані матеріали та канцтовари\" наведено в клітинці праворуч.","Друковані матеріали та канцтовари"]
["Введіть відомості в таблицю \"Друковані матеріали\", починаючи з клітинки праворуч. Подальші вказівки наведено в клітинці A50.","КАТЕГОРІЯ","ОРІЄНТОВНО","ФАКТИЧНО","НЕДОСТАЧА/ЗАЛИШОК"]
[null,"Запрошення",{"v":500,"d":"500.00"},{"v":450,"d":"450.00"},{"$f":"'Наряд-банкет-музика-канцтовари'!$C39-'Наряд-банкет-музика-канцтовари'!$D39","v":{"v":50,"d":"50.00"}}]
[null,"Оголошення",{"v":200,"d":"200.00"},{"v":175,"d":"175.00"},{"$f":"'Наряд-банкет-музика-канцтовари'!$C40-'Наряд-банкет-музика-канцтовари'!$D40","v":{"v":25,"d":"25.00"}}]
[null,"Листівки з подякою",{"v":100,"d":"100.00"},{"v":100,"d":"100.00"},{"$f":"'Наряд-банкет-музика-канцтовари'!$C41-'Наряд-банкет-музика-канцтовари'!$D41","v":{"v":0,"d":"0.00"}}]
[null,"Особисті канцтовари",{"v":0,"d":"0.00"},{"v":0,"d":"0.00"},{"$f":"'Наряд-банкет-музика-канцтовари'!$C42-'Наряд-банкет-музика-канцтовари'!$D42","v":{"v":0,"d":"0.00"}}]
[null,"Гостьова книга",{"v":25,"d":"25.00"},{"v":25,"d":"25.00"},{"$f":"'Наряд-банкет-музика-канцтовари'!$C43-'Наряд-банкет-музика-канцтовари'!$D43","v":{"v":0,"d":"0.00"}}]
[null,"Програми",{"v":75,"d":"75.00"},{"v":80,"d":"80.00"},{"$f":"'Наряд-банкет-музика-канцтовари'!$C44-'Наряд-банкет-музика-канцтовари'!$D44","v":{"v":-5,"d":"-5.00 "}}]
[null,"Серветки на банкет",{"v":35,"d":"35.00"},{"v":40,"d":"40.00"},{"$f":"'Наряд-банкет-музика-канцтовари'!$C45-'Наряд-банкет-музика-канцтовари'!$D45","v":{"v":-5,"d":"-5.00 "}}]
[null,"Сірники-книжки",{"v":0,"d":"0.00"},{"v":0,"d":"0.00"},{"$f":"'Наряд-банкет-музика-канцтовари'!$C46-'Наряд-банкет-музика-канцтовари'!$D46","v":{"v":0,"d":"0.00"}}]
[null,"Каліграфія",{"v":0,"d":"0.00"},{"v":0,"d":"0.00"},{"$f":"'Наряд-банкет-музика-канцтовари'!$C47-'Наряд-банкет-музика-канцтовари'!$D47","v":{"v":0,"d":"0.00"}}]
[null,"Загальні витрати на друковані матеріали та канцтовари",{"$f":"SUBTOTAL(109,Друковані_Матеріали[ОРІЄНТОВНО])","v":{"v":935,"d":"935.00"}},{"$f":"SUBTOTAL(109,Друковані_Матеріали[ФАКТИЧНО])","v":{"v":870,"d":"870.00"}},{"$f":"SUBTOTAL(109,Друковані_Матеріали[НЕДОСТАЧА/ЗАЛИШОК])","v":{"v":65,"d":"65.00"}}]
[]
["Надпис \"Фотографування\" наведено в клітинці праворуч.","Фотографування"]
["Введіть відомості в таблицю \"Фотографування\", починаючи з клітинки праворуч.","КАТЕГОРІЯ","ОРІЄНТОВНО","ФАКТИЧНО","НЕДОСТАЧА/ЗАЛИШОК"]
[null,"Фотосесія у весільному одязі",{"v":1300,"d":"1,300.00"},{"v":1300,"d":"1,300.00"},{"$f":"'Наряд-банкет-музика-канцтовари'!$C52-'Наряд-банкет-музика-канцтовари'!$D52","v":{"v":0,"d":"0.00"}}]
[null,"Фотокопії",{"v":25,"d":"25.00"},{"v":25,"d":"25.00"},{"$f":"'Наряд-банкет-музика-канцтовари'!$C53-'Наряд-банкет-музика-канцтовари'!$D53","v":{"v":0,"d":"0.00"}}]
[null,"Фотоальбоми",{"v":100,"d":"100.00"},{"v":100,"d":"100.00"},{"$f":"'Наряд-банкет-музика-канцтовари'!$C54-'Наряд-банкет-музика-канцтовари'!$D54","v":{"v":0,"d":"0.00"}}]
[null,"Відео",{"v":200,"d":"200.00"},{"v":150,"d":"150.00"},{"$f":"'Наряд-банкет-музика-канцтовари'!$C55-'Наряд-банкет-музика-канцтовари'!$D55","v":{"v":50,"d":"50.00"}}]
[null,"Загальні витрати на фотографування",{"$f":"SUBTOTAL(109,Фотографування[ОРІЄНТОВНО])","v":{"v":1625,"d":"1,625.00"}},{"$f":"SUBTOTAL(109,Фотографування[ФАКТИЧНО])","v":{"v":1575,"d":"1,575.00"}},{"$f":"SUBTOTAL(109,Фотографування[НЕДОСТАЧА/ЗАЛИШОК])","v":{"v":50,"d":"50.00"}}]

{"sheet":"Прикраси-квіти-подарунки-авто","index":3,"n_rows":48,"n_cols":5,"rows_kept":48,"merged":[[8,1,8,4],[9,1,9,4],[18,1,18,4],[27,1,27,4],[34,1,34,4]]}
["Введіть орієнтовно та фактично витрати на кожну категорія у відповідні таблиці на цьому аркуші. Недостача або залишок обчислюється автоматично. Надпис \"Прикраси\" наведено в клітинці праворуч. Корисні вказівки щодо роботи з цим аркушем наведено в клітинках у цьому стовпці. Клацніть стрілку вниз, щоб почати.","Прикраси*"]
["Введіть витрати на прикраси в таблицю, починаючи з клітинки праворуч. Не враховуйте витрати на квіти. Подальші вказівки наведено в клітинці A11.","КАТЕГОРІЯ","ОРІЄНТОВНО","ФАКТИЧНО","НЕДОСТАЧА/ЗАЛИШОК"]
[null,"Банти для крісел",{"v":0,"d":"0.00"},{"v":0,"d":"0.00"},{"$f":"'Прикраси-квіти-подарунки-авто'!$C3-'Прикраси-квіти-подарунки-авто'!$D3","v":{"v":0,"d":"0.00"}}]
[null,"Оформлення столів",{"v":300,"d":"300.00"},{"v":320,"d":"320.00"},{"$f":"'Прикраси-квіти-подарунки-авто'!$C4-'Прикраси-квіти-подарунки-авто'!$D4","v":{"v":-20,"d":"-20.00 "}}]
[null,"Свічки",{"v":100,"d":"100.00"},{"v":75,"d":"75.00"},{"$f":"'Прикраси-квіти-подарунки-авто'!$C5-'Прикраси-квіти-подарунки-авто'!$D5","v":{"v":25,"d":"25.00"}}]
[null,"Освітлення",{"v":100,"d":"100.00"},{"v":75,"d":"75.00"},{"$f":"'Прикраси-квіти-подарунки-авто'!$C6-'Прикраси-квіти-подарунки-авто'!$D6","v":{"v":25,"d":"25.00"}}]
[null,"Повітряні кульки",{"v":200,"d":"200.00"},{"v":250,"d":"250.00"},{"$f":"'Прикраси-квіти-подарунки-авто'!$C7-'Прикраси-квіти-подарунки-авто'!$D7","v":{"v":-50,"d":"-50.00 "}}]
[null,"Загальні витрати на прикраси",{"$f":"SUBTOTAL(109,Прикраси[ОРІЄНТОВНО])","v":{"v":700,"d":"700.00"}},{"$f":"SUBTOTAL(109,Прикраси[ФАКТИЧНО])","v":{"v":720,"d":"720.00"}},{"$f":"SUBTOTAL(109,Прикраси[НЕДОСТАЧА/ЗАЛИШОК])","v":{"v":-20,"d":"-20.00 "}}]
[null,"* Без витрат на квіти"]
[]
["Надпис \"Квіти\" наведено в клітинці праворуч.","Квіти"]
["Введіть відомості в таблицю \"Квіти\", починаючи з клітинки праворуч. Подальші вказівки наведено в клітинці A20.","КАТЕГОРІЯ","ОРІЄНТОВНО","ФАКТИЧНО","НЕДОСТАЧА/ЗАЛИШОК"]
[null,"Букети",{"v":500,"d":"500.00"},{"v":450,"d":"450.00"},{"$f":"'Прикраси-квіти-подарунки-авто'!$C13-'Прикраси-квіти-подарунки-авто'!$D13","v":{"v":50,"d":"50.00"}}]
[null,"Бутоньєрки",{"v":0,"d":"0.00"},{"v":0,"d":"0.00"},{"$f":"'Прикраси-квіти-подарунки-авто'!$C14-'Прикраси-квіти-подарунки-авто'!$D14","v":{"v":0,"d":"0.00"}}]
[null,"Браслети",{"v":0,"d":"0.00"},{"v":0,"d":"0.00"},{"$f":"'Прикраси-квіти-подарунки-авто'!$C15-'Прикраси-квіти-подарунки-авто'!$D15","v":{"v":0,"d":"0.00"}}]
[null,"Церемонія",{"v":400,"d":"400.00"},{"v":400,"d":"400.00"},{"$f":"'Прикраси-квіти-подарунки-авто'!$C16-'Прикраси-квіти-подарунки-авто'!$D16","v":{"v":0,"d":"0.00"}}]
[null,"Банкет",{"v":0,"d":"0.00"},{"v":0,"d":"0.00"},{"$f":"'Прикраси-квіти-подарунки-авто'!$C17-'Прикраси-квіти-подарунки-авто'!$D17","v":{"v":0,"d":"0.00"}}]
[null,"Загальні витрати на квіти",{"$f":"SUBTOTAL(109,Квіти[ОРІЄНТОВНО])","v":{"v":900,"d":"900.00"}},{"$f":"SUBTOTAL(109,Квіти[ФАКТИЧНО])","v":{"v":850,"d":"850.00"}},{"$f":"SUBTOTAL(109,Квіти[НЕДОСТАЧА/ЗАЛИШОК])","v":{"v":50,"d":"50.00"}}]
[]
["Надпис \"Подарунки\" наведено в клітинці праворуч.","Подарунки"]
["Введіть відомості в таблицю \"Подарунки\", починаючи з клітинки праворуч. Подальші вказівки наведено в клітинці A29.","КАТЕГОРІЯ","ОРІЄНТОВНО","ФАКТИЧНО","НЕДОСТАЧА/ЗАЛИШОК"]
[null,"Гості",{"v":1000,"d":"1,000.00"},{"v":400,"d":"400.00"},{"$f":"'Прикраси-квіти-подарунки-авто'!$C22-'Прикраси-квіти-подарунки-авто'!$D22","v":{"v":600,"d":"600.00"}}]
[null,"Зі сторони нареченого",{"v":150,"d":"150.00"},{"v":200,"d":"200.00"},{"$f":"'Прикраси-квіти-подарунки-авто'!$C23-'Прикраси-квіти-подарунки-авто'!$D23","v":{"v":-50,"d":"-50.00 "}}]
[null,"Зі сторони нареченої",{"v":150,"d":"150.00"},{"v":200,"d":"200.00"},{"$f":"'Прикраси-квіти-подарунки-авто'!$C24-'Прикраси-квіти-подарунки-авто'!$D24","v":{"v":-50,"d":"-50.00 "}}]
[null,"Батьки",{"v":25,"d":"25.00"},{"v":25,"d":"25.00"},{"$f":"'Прикраси-квіти-подарунки-авто'!$C25-'Прикраси-квіти-подарунки-авто'!$D25","v":{"v":0,"d":"0.00"}}]
[null,"Тамада / інші учасники",{"v":20,"d":"20.00"},{"v":250,"d":"250.00"},{"$f":"'Прикраси-квіти-подарунки-авто'!$C26-'Прикраси-квіти-подарунки-авто'!$D26","v":{"v":-230,"d":"-230.00 "}}]
[null,"Загальні витрати на подарунки",{"$f":"SUBTOTAL(109,Подарунки[ОРІЄНТОВНО])","v":{"v":1345,"d":"1,345.00"}},{"$f":"SUBTOTAL(109,Подарунки[ФАКТИЧНО])","v":{"v":1075,"d":"1,075.00"}},{"$f":"SUBTOTAL(109,Подарунки[НЕДОСТАЧА/ЗАЛИШОК])","v":{"v":270,"d":"270.00"}}]
[]
["Надпис \"Транспорт і перевезення\" наведено в клітинці праворуч.","Транспорт і перевезення"]
["Введіть докладні відомості в таблицю \"Транспорт\", починаючи з клітинки праворуч. Подальші вказівки наведено в клітинці A36.","КАТЕГОРІЯ","ОРІЄНТОВНО","ФАКТИЧНО","НЕДОСТАЧА/ЗАЛИШОК"]
[null,"Лімузини та автобуси",{"v":100,"d":"100.00"},{"v":125,"d":"125.00"},{"$f":"'Прикраси-квіти-подарунки-авто'!$C31-'Прикраси-квіти-подарунки-авто'!$D31","v":{"v":-25,"d":"-25.00 "}}]
[null,"Паркування",{"v":0,"d":"0.00"},{"v":40,"d":"40.00"},{"$f":"'Прикраси-квіти-подарунки-авто'!$C32-'Прикраси-квіти-подарунки-авто'!$D32","v":{"v":-40,"d":"-40.00 "}}]
[null,"Таксі",{"v":0,"d":"0.00"},{"v":0,"d":"0.00"},{"$f":"'Прикраси-квіти-подарунки-авто'!$C33-'Прикраси-квіти-подарунки-авто'!$D33","v":{"v":0,"d":"0.00"}}]
[null,"Загальні витрати на транспорт і перевезення",{"$f":"SUBTOTAL(109,Транспорт[ОРІЄНТОВНО])","v":{"v":100,"d":"100.00"}},{"$f":"SUBTOTAL(109,Транспорт[ФАКТИЧНО])","v":{"v":165,"d":"165.00"}},{"$f":"SUBTOTAL(109,Транспорт[НЕДОСТАЧА/ЗАЛИШОК])","v":{"v":-65,"d":"-65.00 "}}]
[]
["Надпис \"Інші витрати\" наведено в клітинці праворуч.","Інші витрати"]
["Введіть відомості в таблицю \"Інші витрати\", починаючи з клітинки праворуч.","КАТЕГОРІЯ","ОРІЄНТОВНО","ФАКТИЧНО","НЕДОСТАЧА/ЗАЛИШОК"]
[null,"Священик",{"v":0,"d":"0.00"},{"v":0,"d":"0.00"},{"$f":"'Прикраси-квіти-подарунки-авто'!$C38-'Прикраси-квіти-подарунки-авто'!$D38","v":{"v":0,"d":"0.00"}}]
[null,"Плата за церкву та місце проведення церемонії",{"v":40,"d":"40.00"},{"v":55,"d":"55.00"},{"$f":"'Прикраси-квіти-подарунки-авто'!$C39-'Прикраси-квіти-подарунки-авто'!$D39","v":{"v":-15,"d":"-15.00 "}}]
[null,"Організатор весілля",{"v":0,"d":"0.00"},{"v":0,"d":"0.00"},{"$f":"'Прикраси-квіти-подарунки-авто'!$C40-'Прикраси-квіти-подарунки-авто'!$D40","v":{"v":0,"d":"0.00"}}]
[null,"Репетиція весілля",{"v":450,"d":"450.00"},{"v":450,"d":"450.00"},{"$f":"'Прикраси-квіти-подарунки-авто'!$C41-'Прикраси-квіти-подарунки-авто'!$D41","v":{"v":0,"d":"0.00"}}]
[null,"Вечірка з приводу заручин",{"v":20,"d":"20.00"},{"v":50,"d":"50.00"},{"$f":"'Прикраси-квіти-подарунки-авто'!$C42-'Прикраси-квіти-подарунки-авто'!$D42","v":{"v":-30,"d":"-30.00 "}}]
[null,"Прийом гостей",{"v":30,"d":"30.00"},{"v":20,"d":"20.00"},{"$f":"'Прикраси-квіти-подарунки-авто'!$C43-'Прикраси-квіти-подарунки-авто'!$D43","v":{"v":10,"d":"10.00"}}]
[null,"Замовлення салону",{"v":45,"d":"45.00"},{"v":46,"d":"46.00"},{"$f":"'Прикраси-квіти-подарунки-авто'!$C44-'Прикраси-квіти-подарунки-авто'!$D44","v":{"v":-1,"d":"-1.00 "}}]
[null,"Холостяцька вечірка / дівич-вечір",{"v":0,"d":"0.00"},{"v":0,"d":"0.00"},{"$f":"'Прикраси-квіти-подарунки-авто'!$C45-'Прикраси-квіти-подарунки-авто'!$D45","v":{"v":0,"d":"0.00"}}]
[null,"Ланч",{"v":300,"d":"300.00"},{"v":400,"d":"400.00"},{"$f":"'Прикраси-квіти-подарунки-авто'!$C46-'Прикраси-квіти-подарунки-авто'!$D46","v":{"v":-100,"d":"-100.00 "}}]
[null,"Номери в готелі",{"v":0,"d":"0.00"},{"v":0,"d":"0.00"},{"$f":"'Прикраси-квіти-подарунки-авто'!$C47-'Прикраси-квіти-подарунки-авто'!$D47","v":{"v":0,"d":"0.00"}}]
[null,"Підсумок за іншими витратами",{"$f":"SUBTOTAL(109,ІншіВитрати[ОРІЄНТОВНО])","v":{"v":885,"d":"885.00"}},{"$f":"SUBTOTAL(109,ІншіВитрати[ФАКТИЧНО])","v":{"v":1021,"d":"1,021.00"}},{"$f":"SUBTOTAL(109,ІншіВитрати[НЕДОСТАЧА/ЗАЛИШОК])","v":{"v":-136,"d":"-136.00 "}}]